bitfinex-derivatives/quotes_ETHF0:USTF0_20250317
["timestamp","ask_amount","ask_price","bid_price","bid_amount"]
[1742241932572,3.3442145,1939.0,1938.9,2.47439]
[1742241934970,6.6308,1939.1,1938.9,2.47439]
[1742241934971,3.2078,1939.1,1939.0,1.03154]
[1742241935180,3.2078,1939.1,1939.0,3.84574]
[1742241938169,4.23928,1939.1,1939.0,3.84574]
[1742241938368,3.2078,1939.1,1939.0,3.84574]
[1742241938574,4.23928,1939.1,1939.0,1.3779]
[1742241938782,1.03159,1938.9,1938.8,0.7071]
[1742241938980,4.23939,1938.9,1938.8,0.7071]
[1742241939181,4.23939,1938.9,1938.8,2.1072]
[1742241939377,6.57788807,1938.9,1938.8,2.1072]
[1742241940083,6.57788807,1938.9,1938.8,3.13884]
[1742241945276,5.54629807,1938.9,1938.8,3.13884]
[1742241945475,5.54685434,1938.9,1938.8,3.13884]
[1742241945690,5.67869,1938.9,1938.8,3.13884]
[1742241946184,1.4393,1938.9,1938.8,3.13884]
[1742241946389,2.47089,1938.9,1938.8,3.13884]
[1742241947590,2.47089,1938.9,1938.8,2.1072]
[1742241947891,2.47089,1938.9,1938.8,3.13884]
[1742241948093,3.3706555,1938.9,1938.8,3.13884]
[1742241948293,2.47089,1938.9,1938.8,3.13884]
[1742241948593,3.37064094,1938.9,1938.8,3.13884]
[1742241948793,3.37064094,1938.9,1938.8,2.1072]
[1742241948993,3.37064094,1938.9,1938.8,3.13884]
[1742241950393,2.33905094,1938.9,1938.8,3.13884]
[1742241950589,1.4393,1938.9,1938.8,3.13884]
[1742241950794,2.47089,1938.9,1938.8,3.13884]
[1742241951087,1.93120259,1938.9,1938.8,2.1072]
[1742241951297,2.36119,1938.9,1938.8,2.1072]
[1742241951592,3.26080259,1938.9,1938.8,3.13884]
[1742241955199,3.26080259,1938.9,1938.8,2.43174]
[1742241955999,3.26080259,1938.9,1938.8,1.4001]
[1742241956200,1.0317,1938.7,1938.6,1.7162]
[1742241956401,7.20969259,1938.8,1938.7,2.46884]
[1742241957303,7.20969259,1938.8,1938.7,2.4689]
[1742241958801,4.10741259,1938.8,1938.7,2.4689]
[1742241958990,3.2078,1938.8,1938.7,2.4689]
[1742241959195,5.13905259,1938.8,1938.7,2.4689]
[1742241959401,4.10741259,1938.8,1938.7,2.4689]
[1742241959598,5.13905259,1938.8,1938.7,2.4689]
[1742241959999,3.2078,1938.8,1938.7,2.4689]
[1742241960503,1.68428,1939.0,1938.9,1.03159]
[1742241960704,1.03159,1938.9,1938.8,3.04951]
[1742241960904,2.42449,1938.9,1938.8,3.04951]
[1742241961601,1.55278043,1939.0,1938.9,1.03159]
[1742241961803,3.97724043,1939.0,1938.9,2.34329]
[1742241962002,2.94568043,1939.0,1938.9,2.34329]
[1742241962198,3.97722043,1939.0,1938.9,2.34329]
[1742241962599,3.2078,1939.3,1939.2,1.03143]
[1742241962798,0.6696,1939.5,1939.4,1.03132]
[1742241963002,1.70087,1939.5,1939.4,1.03132]
[1742241963205,1.03132,1939.4,1939.3,1.3588]
[1742241963402,3.34656286,1939.4,1939.3,1.3588]
[1742241963615,1.03148,1939.1,1939.0,0.672]
[1742241963817,1.03159,1938.9,1938.8,1.03162]
[1742241964213,1.03164,1938.8,1938.7,1.71625]
[1742241964412,0.6896,1938.8,1938.7,1.71625]
[1742241964811,3.8785,1939.0,1938.9,1.03159]
[1742241965018,5.46744562,1939.0,1938.9,1.03159]
[1742241965220,7.91448562,1939.0,1938.9,1.03159]
[1742241965420,4.10714562,1939.0,1938.9,1.03159]
[1742241965621,3.2078,1939.0,1938.9,1.72549]
[1742241965922,3.2078,1939.0,1938.9,1.03159]
[1742241966116,5.67534,1939.0,1938.9,1.03159]
[1742241966323,1.03159,1938.9,1938.8,1.3588]
[1742241966624,4.05663427,1938.9,1938.8,1.3588]
[1742241967121,4.05663427,1938.9,1938.8,2.39044]
[1742241967820,3.02504427,1938.9,1938.8,2.39044]
[1742241968020,3.36703427,1938.9,1938.8,2.39044]
[1742241968424,3.36703427,1938.9,1938.8,1.3588]
[1742241969514,3.36703427,1938.9,1938.8,2.39044]
[1742241970224,3.36703427,1938.9,1938.8,1.3588]
[1742241970826,4.91446427,1938.9,1938.6,1.03171]
[1742241971015,3.05714,1938.8,1938.7,1.3366]
[1742241971325,7.16438427,1938.8,1938.7,1.3366]
[1742241971526,7.16438427,1938.8,1938.7,2.3683]
[1742241972919,7.16438427,1938.8,1938.7,1.3366]
[1742241973223,7.16438427,1938.8,1938.7,2.3683]
[1742241973824,4.10724427,1938.8,1938.7,2.3683]
[1742241974322,1.93108427,1938.8,1938.7,2.3683]
[1742241974522,1.03164,1938.8,1938.7,2.3683]
[1742241975024,2.41174,1938.8,1938.7,2.3683]
[1742241975626,1.3801,1938.8,1938.7,2.3683]
[1742241976325,7.2938,1939.0,1938.9,1.03159]
[1742241976513,8.19383298,1939.0,1938.9,1.03159]
[1742241977122,9.22540298,1939.0,1938.9,1.03159]
[1742241977322,1.03159,1938.9,1938.8,2.3761]
[1742241977521,2.41169,1938.9,1938.8,2.3761]
[1742241977925,1.3801,1938.9,1938.8,2.3761]
[1742241979025,3.31183927,1938.9,1938.8,2.37614]
[1742241979725,3.31183927,1938.9,1938.8,1.3445]
[1742241980029,3.31183927,1938.9,1938.8,2.37614]
[1742241980829,1.03172,1938.8,1938.7,1.03165]
[1742241981027,2.41882,1938.8,1938.7,1.03165]
[1742241983525,1.0317,1938.7,1938.6,2.42561]
[1742241983730,3.0879,1938.7,1938.6,2.42561]
[1742241985227,2.0562,1938.7,1938.6,2.42561]
[1742241985424,3.0879,1938.7,1938.6,2.42561]
[1742241987034,1.0318,1938.6,1938.2,2.57987]
[1742241987232,4.23966,1938.4,1938.3,1.03189]
[1742241987429,4.23966,1938.4,1938.3,2.39129]
[1742241987822,4.91886,1938.4,1938.3,2.39129]
[1742241988225,6.30886,1938.4,1938.3,2.39129]
[1742241989433,1.03202,1938.1,1938.0,1.03204]
[1742241989640,1.03221,1937.8,1937.7,1.03216]
[1742241990327,3.2078,1937.9,1937.8,1.03218]
[1742241990534,3.2078,1937.9,1937.8,1.72848]
[1742241990735,3.2078,1937.9,1937.8,3.06698]
[1742241991532,5.11531,1938.2,1937.9,2.58031]
[1742241991726,6.45921,1938.2,1938.1,1.03202]
[1742241991931,9.66701,1938.2,1938.1,1.03202]
[1742241992237,9.66701,1938.2,1938.1,2.37052]
[1742241994136,6.45921,1938.2,1938.1,2.37052]
[1742241994338,5.4272,1938.2,1938.1,2.37052]
[1742241994537,6.45916,1938.2,1938.1,2.37052]
[1742241995741,5.4272,1938.2,1938.1,2.37052]
[1742241995937,3.04716,1938.2,1938.1,2.37052]
[1742241996634,2.0152,1938.2,1938.1,2.37052]
[1742241996840,6.6198,1938.4,1938.3,1.03191]
[1742241997038,7.2757,1938.4,1938.3,1.03191]
[1742241997240,8.30756,1938.4,1938.3,1.03191]
[1742241998341,9.68966,1938.4,1938.3,1.03191]
[1742241998730,6.27766,1938.4,1938.3,1.03191]
[1742241999342,3.06986,1938.4,1938.3,2.35271]
[1742241999545,0.00772201,1938.6,1938.5,1.0318]
[1742241999738,1.35792201,1938.6,1938.5,2.4081]
[1742241999933,1.03195,1938.3,1938.1,2.57994]
[1742242000245,3.06857,1938.2,1938.1,1.03202]
[1742242001231,2.0366,1938.2,1938.1,1.03202]
[1742242001841,3.06856,1938.2,1938.1,1.03202]
[1742242002336,6.27636,1938.2,1938.1,1.03202]
[1742242003332,5.2444,1938.2,1938.1,1.03202]
[1742242003644,3.2078,1938.2,1938.1,1.03202]
[1742242004845,4.6393,1938.2,1938.1,1.03202]
[1742242005145,4.2397,1938.4,1938.3,1.03191]
[1742242005346,5.666,1938.4,1938.3,1.03191]
[1742242005547,1.4263,1938.4,1938.3,1.03191]
[1742242005747,3.1592,1938.5,1938.4,1.03186]
[1742242006046,1.03188,1938.4,1938.3,1.03187]
[1742242006242,2.45818,1938.4,1938.3,1.03187]
[1742242006543,3.17628,1938.4,1938.3,1.03187]
[1742242008339,4.07584645,1938.4,1938.3,1.03187]
[1742242009446,4.07594058,1938.4,1938.3,1.03187]
[1742242009846,3.17628,1938.4,1938.3,1.03187]
[1742242010043,1.4263,1938.4,1938.3,1.03187]
[1742242010748,3.9089,1938.5,1938.4,1.03186]
[1742242010947,5.2125,1938.5,1938.4,1.03186]
[1742242011341,0.00772201,1938.6,1938.5,1.0318]
[1742242012152,0.00772201,1938.6,1938.5,1.7041]
[1742242012945,0.00772201,1938.6,1938.5,5.1161]
[1742242018847,0.00772201,1938.6,1938.5,6.535]
[1742242019546,1.03181,1938.5,1938.4,1.0318]
[1742242019755,1.03187,1938.4,1938.3,1.03186]
[1742242019940,6.37985,1938.5,1938.4,1.03186]
[1742242020142,4.95595,1938.5,1938.4,1.03186]
[1742242020341,4.95595,1938.5,1938.3,2.45078]
[1742242020342,1.03186,1938.4,1938.3,2.45078]
[1742242020539,1.03186,1938.4,1938.3,1.03188]
[1742242020946,1.03191,1938.3,1938.2,2.42023]
[1742242021261,1.72541,1938.3,1938.2,2.42023]
[1742242021749,0.6935,1938.3,1938.2,2.42023]
[1742242021948,1.72541,1938.3,1938.2,2.42023]
[1742242022252,0.6935,1938.3,1938.2,2.42023]
[1742242023755,1.72541,1938.3,1938.2,2.42023]
[1742242024053,1.72541,1938.3,1938.2,1.03193]
[1742242024552,0.6935,1938.3,1938.2,1.03193]
[1742242024751,3.412,1938.4,1938.3,1.03191]
[1742242024952,3.9241,1938.5,1938.4,1.03186]
[1742242025154,4.82472172,1938.5,1938.4,1.03186]
[1742242025553,0.7163,1938.5,1938.4,1.03186]
[1742242025752,0.00772201,1938.6,1938.5,1.0318]
[1742242026053,0.00772201,1938.6,1938.5,3.1162]
[1742242032254,0.00772201,1938.6,1938.5,6.5272]
[1742242033253,0.00772201,1938.6,1938.5,5.8702]
[1742242040663,1.3261,1938.9,1938.8,1.03164]
[1742242041263,1.412,1939.1,1939.0,1.03154]
[1742242041664,0.7,1939.1,1939.0,1.03154]
[1742242042573,2.1428,1939.1,1939.0,2.46374]
[1742242044373,3.83738,1939.1,1939.0,1.03154]
[1742242044768,2.8059,1939.1,1939.0,1.03154]
[1742242044974,1.03168,1938.8,1938.7,1.03168]
[1742242045166,4.23949,1938.8,1938.7,1.0317]
[1742242045569,1.0317,1938.7,1938.6,2.41803]
[1742242045874,2.7795,1938.7,1938.6,2.41803]
[1742242050976,2.1164,1938.7,1938.6,2.41803]
[1742242054678,3.411,1938.8,1938.6,2.41803]
[1742242054880,3.411,1938.8,1938.7,3.0855]
[1742242055084,2.0593,1938.9,1938.8,1.03164]
[1742242055285,1.59168654,1938.9,1938.8,2.40654]
[1742242058179,0.90198654,1938.9,1938.8,2.40654]
[1742242058380,4.81108654,1939.0,1938.9,1.03159]
[1742242058580,4.81108654,1939.0,1938.9,2.39269]
[1742242062586,4.10978654,1939.0,1938.9,2.39269]
[1742242062785,3.2078,1939.0,1938.9,2.39269]
[1742242063289,4.10978654,1939.0,1938.9,2.39269]
[1742242064180,5.14132654,1939.0,1938.9,2.39269]
[1742242064683,4.10978654,1939.0,1938.9,2.39269]
[1742242064883,4.23934,1939.0,1938.9,2.39269]
[1742242065085,5.14132654,1939.0,1938.9,2.39269]
[1742242065787,1.03163,1938.9,1938.8,1.0316]
[1742242066285,1.03163,1938.9,1938.8,2.4476]
[1742242066677,1.03168,1938.8,1938.7,1.03164]
[1742242066880,5.60398,1938.8,1938.7,1.03164]
[1742242067085,1.0317,1938.7,1938.6,2.3673]
[1742242067391,1.93268593,1938.7,1938.6,2.3673]
[1742242067890,5.80618,1938.8,1938.7,1.0317]
[1742242068090,6.70707502,1938.8,1938.7,2.3673]
[1742242069187,6.70703502,1938.8,1938.7,2.3673]
[1742242071189,9.91483502,1938.8,1938.7,2.3673]
[1742242075383,9.91483502,1938.8,1938.7,1.3356]
[1742242075583,1.0317,1938.7,1938.6,1.03173]
[1742242075880,3.26929502,1938.7,1938.6,1.03173]
[1742242078291,2.23759502,1938.7,1938.6,1.03173]
[1742242078492,3.26929502,1938.7,1938.6,1.03173]
[1742242079191,0.90089502,1938.7,1938.6,1.03173]
[1742242079488,2.22399502,1938.7,1938.6,1.72913]
[1742242079792,2.22429589,1938.7,1938.6,1.72913]
[1742242082388,0.90119589,1938.7,1938.6,1.72913]
[1742242082582,5.4661,1939.0,1938.9,1.03159]
[1742242082787,6.36733317,1939.0,1938.9,1.03159]
[1742242083096,0.90123317,1939.0,1938.9,1.03159]
[1742242083288,0.90123317,1939.0,1938.9,3.10569]
[1742242084493,3.2078,1939.1,1939.0,1.03154]
[1742242084691,4.10903317,1939.1,1939.0,2.35894]
[1742242086489,2.06382201,1939.2,1939.1,1.03148]
[1742242086690,2.26091496,1939.2,1939.1,2.35888]
[1742242086886,1.36042201,1939.2,1939.1,2.35888]
[1742242089494,0.00772201,1939.2,1939.1,2.35888]
[1742242090794,0.7168,1939.5,1939.4,1.03132]
[1742242090992,5.15707,1939.5,1939.4,1.03132]
[1742242091191,4.7898,1939.5,1939.2,1.3951]
[1742242091390,4.7898,1939.5,1939.3,1.03135]
[1742242091391,1.03134,1939.4,1939.3,1.03135]
[1742242091697,1.03132,1939.4,1939.3,1.03133]
[1742242091895,4.7898,1939.5,1939.2,0.6948]
[1742242092098,1.03132,1939.4,1939.3,2.44326]
[1742242092699,1.03138,1939.3,1939.2,0.00772201]
[1742242092900,4.44038,1939.3,1939.2,0.00772201]
[1742242093196,46.13947265,1939.3,1939.2,0.00772201]
[1742242093398,47.56937265,1939.3,1939.2,0.00772201]
[1742242098207,6.76937265,1939.3,1939.2,0.00772201]
[1742242099698,6.76937265,1939.3,1939.2,1.03915201]
[1742242100094,2.32899265,1939.3,1939.2,1.03915201]
[1742242100701,0.89909265,1939.3,1939.2,2.34665201]
[1742242100901,5.50467431,1939.4,1939.3,1.03138]
[1742242101101,5.50467431,1939.4,1939.3,2.99438]
[1742242101304,3.2078,1939.4,1939.3,2.99438]
[1742242102403,2.07022201,1939.5,1939.4,1.03132]
[1742242102713,0.00772201,1939.5,1939.4,2.33882]
[1742242103011,0.00772201,1939.5,1939.4,3.03492]
[1742242103213,1.43702201,1939.5,1939.4,3.03492]
[1742242103808,0.00772201,1939.5,1939.4,3.03492]
[1742242111411,0.00772201,1939.5,1939.4,2.33882]
[1742242114711,0.00772201,1939.5,1939.4,5.95375654]
[1742242116015,0.00772201,1939.5,1939.4,5.54662]
[1742242116613,0.00772201,1939.5,1939.4,5.96639465]
[1742242117210,0.00772201,1939.5,1939.4,5.54662]
[1742242118119,0.00772201,1939.5,1939.4,2.33882]
[1742242118819,1.37202201,1939.5,1939.4,2.33882]
[1742242122118,1.37202201,1939.5,1939.4,1.3075]
[1742242122423,1.03134,1939.4,1939.3,1.03134]
[1742242122621,1.03134,1939.4,1939.3,2.37974]
[1742242123220,2.40333201,1939.5,1939.4,1.03132]
[1742242123617,1.03132,1939.4,1939.3,2.37973]
[1742242123817,1.3932,1939.4,1939.3,2.37973]
[1742242124213,2.42452,1939.4,1939.3,2.37973]
[1742242125223,1.3932,1939.4,1939.3,2.37973]
[1742242127024,2.42452,1939.4,1939.3,2.37973]
[1742242127726,1.3932,1939.4,1939.3,2.37973]
[1742242130119,0.00772201,1939.5,1939.4,1.03132]
[1742242130319,1.33652201,1939.5,1939.4,2.43622]
[1742242130719,0.00772201,1939.5,1939.4,5.84322]
[1742242130918,0.00772201,1939.5,1939.4,6.55452]
[1742242132124,0.00772201,1939.5,1939.4,5.84322]
[1742242132331,0.00772201,1939.5,1939.4,2.43622]
[1742242132332,0.71352201,1939.5,1939.4,2.43622]
[1742242132733,3.07359201,1939.5,1939.4,1.4049]
[1742242133029,1.03134,1939.4,1939.3,1.03132]
[1742242133229,3.03884,1939.4,1939.3,2.43622]
[1742242133822,3.03884,1939.4,1939.3,1.03132]
[1742242134031,1.03138,1939.3,1939.2,2.45801201]
[1742242134218,1.3774,1939.3,1939.2,2.45805201]
[1742242134526,2.40878,1939.3,1939.2,2.45805201]
[1742242135625,1.3774,1939.3,1939.2,2.45805201]
[1742242137328,2.40878,1939.3,1939.2,2.45805201]
[1742242137932,3.30890164,1939.3,1939.2,0.00772201]
[1742242138132,1.03148,1939.1,1939.0,2.4406]
[1742242138332,1.03148,1939.1,1939.0,1.0315]
[1742242138519,1.93160164,1939.1,1939.0,1.0315]
[1742242138832,1.03163,1938.9,1938.8,1.03156]
[1742242139035,4.23943,1938.9,1938.8,1.03156]
[1742242139227,1.03163,1938.9,1938.8,1.03156]
[1742242139530,2.43013,1938.9,1938.8,1.03156]
[1742242140335,1.3985,1938.9,1938.8,1.03156]
[1742242140725,1.3985,1938.9,1938.8,1.70436]
[1742242141228,4.6242,1939.1,1939.0,1.03154]
[1742242141433,2.44788,1939.1,1939.0,1.03154]
[1742242142130,0.7038,1939.1,1939.0,1.03154]
[1742242142325,3.41472201,1939.5,1939.4,1.03132]
[1742242142525,5.15969201,1939.5,1939.4,1.03132]
[1742242143542,7.31319201,1939.5,1939.4,1.03132]
[1742242144626,2.16122201,1939.5,1939.4,1.03132]
[1742242144831,0.00772201,1939.5,1939.4,1.03132]
[1742242145138,1.44132201,1939.5,1939.4,2.35992]
[1742242147332,0.00772201,1939.5,1939.4,2.35992]
[1742242147540,0.00772201,1939.5,1939.4,6.42212]
[1742242147738,1.383,1939.8,1939.7,1.03116]
[1742242148739,1.383,1939.8,1939.7,1.71116]
[1742242149337,3.88202201,1939.9,1939.8,1.03111]
[1742242149538,3.21552201,1939.9,1939.8,2.34621]
[1742242149735,3.21552201,1939.9,1939.8,3.01691]
[1742242149931,0.00772201,1939.9,1939.8,3.01691]
[1742242150338,0.00772201,1939.9,1939.8,6.42291]
[1742242152331,0.00772201,1939.9,1939.8,5.75221]
[1742242152735,1.43852201,1939.9,1939.8,5.75221]
[1742242153145,1.43852201,1939.9,1939.8,2.34621]
[1742242155241,0.00772201,1939.9,1939.8,2.34621]
[1742242155444,0.00772201,1939.9,1939.8,5.75121]
[1742242158553,3.2078,1940.4,1940.3,1.03085]
[1742242158744,4.5682,1940.4,1940.3,1.03085]
[1742242159243,5.59899,1940.4,1940.3,1.03085]
[1742242160444,2.39119,1940.4,1940.3,1.03085]
[1742242160850,1.3604,1940.4,1940.3,1.03085]
[1742242162144,1.3604,1940.4,1940.3,2.39585]
[1742242162746,2.39119,1940.4,1940.3,2.39585]
[1742242163142,1.03088,1940.3,1940.1,0.7057]
[1742242163350,2.44968,1940.3,1940.2,1.03086]
[1742242163552,1.0309,1940.2,1940.1,2.39591]
[1742242163752,3.1007,1940.2,1940.1,2.39591]
[1742242164750,2.0698,1940.2,1940.1,2.39591]
[1742242166962,3.1007,1940.2,1940.1,2.39591]
[1742242167255,1.03099,1940.1,1940.0,1.03099]
[1742242167447,3.10149,1940.1,1940.0,1.03099]
[1742242168454,2.0705,1940.1,1940.0,1.03099]
[1742242169850,1.03101,1940.0,1939.9,2.38992]
[1742242170055,1.3847,1940.0,1939.7,4.94984]
[1742242170254,0.6675,1939.9,1939.7,1.362]
[1742242170458,2.41581,1939.8,1939.7,2.39312]
[1742242171048,1.03116,1939.7,1939.6,1.03891201]
[1742242171249,2.0888,1939.7,1939.6,1.03891201]
[1742242171450,3.11996,1939.7,1939.6,0.00772201]
[1742242171653,3.11996,1939.7,1939.4,0.6704]
[1742242171654,1.03127,1939.5,1939.4,1.03129]
[1742242172155,41.83127,1939.5,1939.4,1.03129]
[1742242172357,43.87057,1939.5,1939.4,1.03129]
[1742242173161,42.8393,1939.5,1939.3,1.36972201]
[1742242173456,1.03132,1939.4,1939.3,2.40105201]
[1742242173760,42.48591,1939.5,1939.4,1.03132]
[1742242173955,42.48591,1939.5,1939.4,2.40532]
[1742242174253,1.03132,1939.4,1939.3,0.00772201]
[1742242174461,1.03132,1939.4,1939.3,1.03910201]
[1742242174658,3.404,1939.4,1939.3,1.03910201]
[1742242174859,4.43532,1939.4,1939.3,1.03910201]
[1742242175754,3.404,1939.4,1939.3,1.03910201]
[1742242176760,0.6546,1939.5,1939.4,1.03132]
[1742242177054,0.6546,1939.5,1939.4,2.38932]
[1742242177661,4.1081,1939.7,1939.6,1.03122]
[1742242177859,5.80626,1939.7,1939.6,1.03122]
[1742242178253,5.80626,1939.7,1939.6,2.38922]
[1742242178449,4.7751,1939.7,1939.6,2.38922]
[1742242178655,5.80626,1939.7,1939.6,2.38922]
[1742242179058,4.7751,1939.7,1939.6,2.38922]
[1742242180367,5.80626,1939.7,1939.6,2.38922]
[1742242180662,4.7751,1939.7,1939.6,2.38922]
[1742242180855,5.80626,1939.7,1939.6,2.38922]
[1742242181257,4.7751,1939.7,1939.3,4.07532201]
[1742242181455,1.03129,1939.5,1939.4,2.45459]
[1742242182957,1.03129,1939.5,1939.3,1.03905201]
[1742242182958,1.03132,1939.4,1939.3,1.03905201]
[1742242184159,4.4353,1939.5,1939.4,1.03132]
[1742242184360,4.4353,1939.5,1939.4,2.47612]
[1742242184666,3.404,1939.5,1939.4,2.47612]
[1742242184864,4.43527,1939.5,1939.4,2.47612]
[1742242185164,4.43527,1939.5,1939.4,1.4448]
[1742242185767,1.03132,1939.4,1939.3,1.03906201]
[1742242186762,1.03132,1939.4,1939.3,0.00772201]
[1742242186964,4.23912,1939.4,1939.3,0.00772201]
[1742242189066,5.57532,1939.4,1939.3,1.03910201]
[1742242189267,6.23032,1939.4,1939.3,1.03910201]
[1742242191467,3.2078,1939.4,1939.3,1.03910201]
[1742242191669,3.2078,1939.4,1939.3,1.69090201]
[1742242191970,5.84011,1939.5,1939.4,1.03132]
[1742242192169,2.43511,1939.5,1939.4,2.45602]
[1742242192764,2.43511,1939.5,1939.4,1.4247]
[1742242193169,2.43511,1939.5,1939.4,2.45602]
[1742242194973,2.43511,1939.5,1939.4,1.4247]
[1742242196083,1.03132,1939.4,1939.3,1.03906201]
[1742242196377,5.65362,1939.4,1939.3,2.45396201]
[1742242198671,9.05762,1939.4,1939.3,1.42262201]
[1742242198876,1.03143,1939.2,1939.1,1.71825]
[1742242199078,4.23923,1939.2,1939.1,1.71825]
[1742242199378,5.13984127,1939.2,1939.1,0.6868]
[1742242199579,8.54384127,1939.2,1939.1,0.6868]
[1742242199885,8.54384127,1939.2,1939.1,1.71828]
[1742242200082,9.85584127,1939.2,1939.1,1.71828]
[1742242200577,1.03148,1939.1,1939.0,1.427]
[1742242200774,1.03159,1938.9,1938.8,1.68984]
[1742242201278,1.93220127,1938.9,1938.8,1.68984]
[1742242201576,3.24420127,1938.9,1938.8,1.68984]
[1742242201772,2.21261127,1938.9,1938.8,1.68984]
[1742242202078,3.2078,1939.0,1938.9,1.03159]
[1742242202275,4.23934,1939.0,1938.9,1.03159]
[1742242202480,1.03159,1938.9,1938.8,1.68981]
[1742242202779,2.34359,1938.9,1938.8,1.68981]
[1742242202981,1.312,1938.9,1938.8,1.68981]
[1742242203371,3.01819,1938.9,1938.8,1.68981]
[1742242203774,3.01819,1938.9,1938.8,0.6582]
[1742242203979,1.03164,1938.8,1938.7,1.3986]
[1742242204182,2.41504,1938.8,1938.7,1.3986]
[1742242204372,2.41504,1938.8,1938.7,2.4303]
[1742242205086,1.3834,1938.8,1938.7,2.4303]
[1742242207080,7.64337,1939.0,1938.7,1.3986]
[1742242207379,7.64337,1939.0,1938.9,1.03159]
[1742242207578,6.6118,1939.0,1938.9,1.03159]
[1742242208379,3.2078,1939.0,1938.9,2.46519]
[1742242209075,1.3121,1939.1,1939.0,1.03154]
[1742242209380,1.03145,1939.2,1939.1,1.03144]
[1742242210181,8.36094201,1939.3,1939.2,1.03143]
[1742242210381,1.03145,1939.2,1939.1,2.40383]
[1742242210781,6.62052201,1939.3,1939.2,1.03143]
[1742242210983,3.21552201,1939.3,1939.2,1.74643]
[1742242211174,3.21552201,1939.3,1939.2,1.03143]
[1742242211376,3.91342201,1939.3,1939.2,1.03143]
[1742242211579,4.54432201,1939.3,1939.2,1.03143]
[1742242211882,0.00772201,1939.3,1939.2,1.03143]
[1742242212080,0.00772201,1939.3,1939.2,2.40383]
[1742242214579,1.03112,1939.8,1939.7,1.03113]
[1742242214777,2.25864131,1939.8,1939.7,1.03116]
[1742242215083,3.28980131,1939.8,1939.6,3.85117]
[1742242215271,2.36766,1939.7,1939.6,3.16267]
[1742242215472,2.051,1939.7,1939.6,3.16267]
[1742242215684,3.08216,1939.7,1939.6,3.16267]
[1742242216187,3.08216,1939.7,1939.6,2.1315]
[1742242216389,2.051,1939.7,1939.6,3.16272]
[1742242216581,1.3365,1939.7,1939.6,3.16272]
[1742242217980,0.90776332,1939.8,1939.7,1.03116]
[1742242218292,1.34422201,1939.8,1939.7,3.13096]
[1742242218785,3.2078,1939.9,1939.8,1.03111]
[1742242218989,4.5744,1939.9,1939.8,2.37611]
[1742242221891,5.60546,1939.9,1939.8,2.37611]
[1742242222084,6.32236,1939.9,1939.8,2.37611]
[1742242223284,1.03111,1939.8,1939.7,1.03112]
[1742242223487,2.40831,1939.8,1939.7,2.44972]
[1742242223988,1.3772,1939.8,1939.7,2.44972]
[1742242224290,1.3772,1939.8,1939.7,1.03112]
[1742242224484,2.0298,1939.8,1939.7,1.03112]
[1742242225188,3.06091,1939.8,1939.7,1.03112]
[1742242225988,3.06091,1939.8,1939.7,2.43832]
[1742242226689,1.03122,1939.6,1939.5,0.00772201]
[1742242226887,4.23902,1939.6,1939.5,0.00772201]
[1742242227290,4.90642,1939.6,1939.5,1.03899201]
[1742242228193,4.90642,1939.6,1939.5,0.00772201]
[1742242228490,8.30942,1939.6,1939.5,1.03899201]
[1742242228689,9.20617175,1939.6,1939.5,0.00772201]
[1742242228883,9.20617175,1939.6,1939.5,1.03899201]
[1742242229289,9.20617175,1939.6,1939.5,0.00772201]
[1742242229488,9.20617175,1939.6,1939.5,1.03899201]
[1742242229688,9.20617175,1939.6,1939.5,0.00772201]
[1742242230093,8.30942,1939.6,1939.5,0.00772201]
[1742242233699,8.30942,1939.6,1939.5,1.03899201]
[1742242233887,8.30942,1939.6,1939.5,0.00772201]
[1742242235001,5.10162,1939.6,1939.5,1.03899201]
[1742242235298,8.30942,1939.6,1939.5,1.03899201]
[1742242236601,3.2078,1939.6,1939.5,1.03899201]
[1742242236801,4.23902,1939.6,1939.5,1.03899201]
[1742242237201,4.6305,1939.6,1939.5,2.44469201]
[1742242238295,3.2078,1939.6,1939.5,2.44469201]
[1742242238499,1.4227,1939.7,1939.6,1.03122]
[1742242238697,1.4227,1939.7,1939.6,3.14152]
[1742242240604,7.64955201,1940.0,1939.9,1.03106]
[1742242240795,7.64955201,1940.0,1939.8,1.03107]
[1742242240796,1.03107,1939.9,1939.8,1.03107]
[1742242241109,7.64955201,1940.0,1939.9,1.03106]
[1742242241414,8.54899318,1940.0,1939.9,1.03106]
[1742242242104,9.88199318,1940.0,1939.9,1.03106]
[1742242242409,1.34072201,1940.0,1939.9,1.03106]
[1742242242609,0.00772201,1940.0,1939.9,1.03106]
[1742242246214,1.39062201,1940.0,1939.9,1.03106]
[1742242250921,2.09122201,1940.0,1939.9,1.03106]
[1742242252220,2.09122201,1940.0,1939.9,2.37696]
[1742242253931,1.39062201,1940.0,1939.9,2.37696]
[1742242254425,0.7033,1940.2,1940.1,1.03095]
[1742242254628,2.1272,1940.2,1940.1,1.03095]
[1742242255023,1.4239,1940.2,1940.1,2.43465]
[1742242256227,3.21552201,1940.3,1940.2,1.0309]
[1742242256426,4.53352201,1940.3,1940.2,2.4346]
[1742242259235,5.21982201,1940.3,1940.2,2.4346]
[1742242261027,2.01202201,1940.3,1940.2,2.4346]
[1742242262032,1.32572201,1940.3,1940.2,2.4346]
[1742242264728,1.99202201,1940.3,1940.2,2.4346]
[1742242273546,3.02287201,1940.3,1940.2,1.0309]
[1742242273843,3.72977201,1940.3,1940.2,1.0309]
[1742242274245,1.03093,1940.2,1940.1,1.03091]
[1742242274543,3.28320569,1940.2,1940.1,1.03091]
[1742242274737,3.28320569,1940.2,1940.1,2.42751]
[1742242274939,3.28320569,1940.2,1940.1,1.03091]
[1742242275147,1.03099,1940.1,1940.0,1.03096]
[1742242275443,2.38229,1940.1,1940.0,1.03096]
[1742242276037,1.03106,1940.0,1939.9,1.03101]
[1742242276238,3.99983569,1940.0,1939.9,1.03101]